bitfinex/quotes_BTCUSD_20241024
["timestamp","ask_amount","ask_price","bid_price","bid_amount"]
[1729806506536,0.26160787,68399.0,68398.0,0.001654]
[1729806508541,0.27160787,68399.0,68398.0,0.001654]
[1729806511979,0.27160787,68399.0,68388.0,1e-07]
[1729806511980,0.61799045,68389.0,68388.0,1e-07]
[1729806512203,0.68982581,68389.0,68388.0,1e-07]
[1729806512416,0.79815829,68389.0,68388.0,1e-07]
[1729806513024,0.79815829,68389.0,68376.0,0.21887426]
[1729806513025,0.146237,68382.0,68376.0,0.21887426]
[1729806513238,0.34790545,68382.0,68376.0,0.21887426]
[1729806513426,0.35474128,68382.0,68374.0,0.005]
[1729806513911,0.35474128,68382.0,68375.0,0.002]
[1729806514322,0.68619601,68382.0,68373.0,0.0180858]
[1729806514531,0.246254,68374.0,68373.0,0.0180858]
[1729806514715,0.252264,68374.0,68373.0,0.0180858]
[1729806515080,0.25909606,68374.0,68373.0,0.0180858]
[1729806515506,0.33269606,68374.0,68373.0,0.0180858]
[1729806517594,0.63370368,68374.0,68373.0,0.0180858]
[1729806519487,0.49158158,68374.0,68373.0,0.0180858]
[1729806519902,0.49658158,68374.0,68373.0,0.0180858]
[1729806520308,0.74065082,68374.0,68373.0,8e-07]
[1729806520518,0.52177656,68374.0,68373.0,8e-07]
[1729806520732,0.67228037,68374.0,68373.0,8e-07]
[1729806521163,0.66627037,68374.0,68373.0,8e-07]
[1729806523053,0.005,68365.0,68358.0,0.21369506]
[1729806523261,0.34795445,68359.0,68358.0,0.21369506]
[1729806523465,0.246295,68355.0,68354.0,0.007]
[1729806523890,0.2529804,68355.0,68354.0,0.005]
[1729806524509,0.538892,68354.0,68353.0,0.007]
[1729806524920,0.54557859,68354.0,68353.0,0.007]
[1729806525547,0.54557859,68354.0,68353.0,0.0993]
[1729806525754,0.54557859,68354.0,68353.0,0.2957]
[1729806525755,0.00668659,68354.0,68353.0,0.2957]
[1729806525969,0.146295,68355.0,68354.0,0.2787]
[1729806526173,0.1,68355.0,68354.0,0.2957]
[1729806526385,0.246295,68355.0,68354.0,0.2957]
[1729806526798,0.1484845,68357.0,68356.0,0.2957]
[1729806526999,0.292573,68359.0,68358.0,0.2957]
[1729806527000,0.146287,68359.0,68358.0,0.2957]
[1729806527204,0.146287,68359.0,68358.0,0.44620381]
[1729806527511,0.292552,68364.0,68363.0,0.2857]
[1729806527746,0.36513026,68373.0,68372.0,0.015]
[1729806527969,0.36513026,68373.0,68361.0,0.01292535]
[1729806527970,0.146258,68372.0,68371.0,0.005]
[1729806528184,0.67289247,68373.0,68368.0,0.005]
[1729806528185,0.64447616,68373.0,68368.0,0.005]
[1729806528394,0.146258,68372.0,68371.0,0.005]
[1729806528607,0.14626,68371.0,68370.0,0.005]
[1729806529075,0.24626,68371.0,68370.0,0.005]
[1729806530963,0.246262,68370.0,68369.0,0.015]
[1729806532436,0.246262,68370.0,68369.0,0.01]
[1729806532672,0.538788,68370.0,68369.0,0.005]
[1729806533105,0.392526,68370.0,68369.0,0.005]
[1729806533317,0.538788,68370.0,68369.0,0.005]
[1729806533541,0.246267,68368.0,68367.0,0.005]
[1729806533750,0.246267,68368.0,68367.0,0.015]
[1729806533980,0.246267,68368.0,68367.0,0.017]
[1729806534697,0.146266,68369.0,68368.0,0.2666]
[1729806534889,0.247914,68371.0,68370.0,0.015]
[1729806535588,0.001654,68371.0,68370.0,0.16750381]
[1729806535802,0.001654,68371.0,68370.0,0.42910381]
[1729806536217,0.001654,68371.0,68370.0,0.43410381]
[1729806536420,0.001654,68371.0,68370.0,0.44410381]
[1729806536630,0.001654,68371.0,68370.0,0.59036581]
[1729806543468,0.001654,68371.0,68370.0,0.69203426]
[1729806543920,0.001654,68371.0,68370.0,0.69403426]
[1729806545072,0.21887426,68383.0,68382.0,0.022]
[1729806545296,0.21887426,68383.0,68382.0,0.54577226]
[1729806545739,0.146227,68387.0,68386.0,0.015]
[1729806545958,0.146227,68387.0,68386.0,0.26717226]
[1729806546143,0.00219342,68390.0,68389.0,0.017]
[1729806546352,0.00219342,68390.0,68389.0,0.43410381]
[1729806547395,0.14841342,68390.0,68389.0,0.43410381]
[1729806547600,0.292421,68395.0,68394.0,0.017]
[1729806547809,0.146209,68395.0,68394.0,0.16750381]
[1729806548403,0.540257,68399.0,68398.0,0.017]
[1729806548611,0.540257,68399.0,68398.0,0.16750381]
[1729806549411,0.54245017,68399.0,68398.0,0.16750381]
[1729806549607,0.25004717,68399.0,68398.0,0.17250381]
[1729806552657,0.15004717,68399.0,68398.0,0.17150381]
[1729806554148,0.15004717,68399.0,68398.0,0.43310381]
[1729806554706,0.00384717,68399.0,68398.0,0.43310381]
[1729806554913,0.15004717,68399.0,68398.0,0.43310381]
[1729806557110,0.147854,68399.0,68398.0,0.43310381]
[1729806557737,0.001654,68399.0,68398.0,0.43310381]
[1729806562736,0.001654,68399.0,68398.0,0.57930681]
[1729806562963,0.001654,68399.0,68398.0,0.43310381]
[1729806565884,0.001654,68399.0,68398.0,0.01]
[1729806565885,0.46839671,68399.0,68398.0,0.01]
[1729806566105,0.146209,68395.0,68394.0,0.005]
[1729806566333,0.146209,68395.0,68387.0,0.002]
[1729806566334,0.146218,68391.0,68390.0,0.005]
[1729806566564,0.146218,68391.0,68390.0,0.007]
[1729806566787,0.246218,68391.0,68390.0,0.005]
[1729806567019,0.246218,68391.0,68390.0,0.014]
[1729806567505,0.246239,68381.0,68380.0,0.005]
[1729806567955,0.246239,68381.0,68379.0,0.21887426]
[1729806567956,0.246241,68380.0,68379.0,0.005]
[1729806568185,0.246243,68379.0,68378.0,0.007]
[1729806571838,0.25716541,68379.0,68378.0,0.007]
[1729806572081,0.246243,68379.0,68378.0,0.007]
[1729806572386,0.25991739,68379.0,68378.0,0.007]
[1729806573048,0.246243,68379.0,68378.0,0.007]
[1729806573276,0.2571655,68379.0,68378.0,0.007]
[1729806573908,0.246243,68379.0,68378.0,0.007]
[1729806577383,0.25714845,68379.0,68378.0,0.002]
[1729806577560,0.25714845,68379.0,68378.0,0.007]
[1729806578007,0.25714845,68379.0,68378.0,0.002]
[1729806578225,0.25714845,68379.0,68378.0,0.007]
[1729806579143,0.246243,68379.0,68378.0,0.007]
[1729806579805,0.25714845,68379.0,68378.0,0.007]
[1729806580474,0.25714845,68379.0,68378.0,0.002826]
[1729806580681,0.25714845,68379.0,68378.0,0.007826]
[1729806581738,0.246243,68379.0,68378.0,0.007826]
[1729806582481,0.246243,68379.0,68378.0,0.002826]
[1729806582688,0.246243,68379.0,68378.0,0.007826]
[1729806583675,0.246243,68379.0,68378.0,0.002826]
[1729806583875,0.246243,68379.0,68378.0,0.007826]
[1729806584155,0.246243,68379.0,68378.0,0.000826]
[1729806584359,0.246243,68379.0,68378.0,0.005826]
[1729806584774,0.246243,68379.0,68378.0,0.000826]
[1729806586686,0.25713378,68379.0,68378.0,0.000826]
[1729806587530,0.246243,68379.0,68378.0,0.000826]
[1729806591729,0.2571339,68379.0,68378.0,0.000826]
[1729806592503,0.246243,68379.0,68378.0,0.000826]
[1729806593251,0.34819714,68379.0,68378.0,0.000826]
[1729806596081,0.35910761,68379.0,68378.0,0.000826]
[1729806596709,0.34819714,68379.0,68378.0,0.000826]
[1729806597127,0.35916882,68379.0,68378.0,0.000826]
[1729806597791,0.34819714,68379.0,68378.0,0.000826]
[1729806598413,0.42859714,68379.0,68378.0,0.000826]
[1729806600107,0.43956882,68379.0,68378.0,0.000826]
[1729806600738,0.57910095,68379.0,68378.0,0.000826]
[1729806600940,0.68105509,68379.0,68378.0,0.000826]
[1729806601237,0.67685369,68379.0,68378.0,0.000826]
[1729806601429,0.57910095,68379.0,68378.0,0.000826]
[1729806601860,0.58410095,68379.0,68378.0,0.000826]
[1729806604434,0.48214681,68379.0,68378.0,0.000826]
[1729806604650,0.58410095,68379.0,68378.0,0.000826]
[1729806604863,0.34821914,68369.0,68368.0,0.001826]
[1729806608667,0.35918321,68369.0,68368.0,0.001826]
[1729806608897,0.34821914,68369.0,68368.0,0.001826]
[1729806609942,0.35918321,68369.0,68368.0,0.001826]
[1729806610654,0.146269,68367.0,68366.0,0.001826]
[1729806610855,0.246269,68367.0,68366.0,0.001826]
[1729806614869,0.246269,68367.0,68359.0,0.001826]
[1729806614870,0.1,68363.0,68359.0,0.001826]
[1729806615093,0.146284,68360.0,68359.0,0.001826]
[1729806615310,0.146284,68360.0,68359.0,0.006826]
[1729806616354,0.1484785,68360.0,68359.0,0.006826]
[1729806618747,0.0021945,68360.0,68358.0,0.006653]
[1729806618963,0.438863,68359.0,68358.0,0.006653]
[1729806623333,0.438863,68359.0,68358.0,0.195753]
[1729806625489,0.44981451,68359.0,68358.0,0.195753]
[1729806626990,0.438863,68359.0,68358.0,0.195753]
[1729806627578,0.438863,68359.0,68358.0,0.196579]
[1729806631806,0.44343253,68359.0,68358.0,0.196579]
[1729806635810,0.00456953,68359.0,68358.0,0.275979]
[1729806636017,0.00456953,68359.0,68358.0,0.57277081]
[1729806636283,0.246278,68363.0,68358.0,0.57277081]
[1729806636284,0.1,68363.0,68358.0,0.71905881]
[1729806636496,0.1,68363.0,68362.0,0.002653]
[1729806636709,0.1,68363.0,68362.0,0.189653]
[1729806637549,0.246273,68365.0,68364.0,0.004]
[1729806639039,0.246273,68365.0,68364.0,0.006653]
[1729806643825,0.1,68365.0,68364.0,0.23405681]
[1729806644032,0.246273,68365.0,68364.0,0.42205681]
[1729806644999,0.25131477,68365.0,68364.0,0.42205681]
[1729806650186,0.15131477,68365.0,68364.0,0.42205681]
[1729806655226,0.15296677,68365.0,68364.0,0.42205681]
[1729806658207,0.15296677,68365.0,68364.0,0.34515681]
[1729806662638,0.15296677,68365.0,68364.0,0.34973032]
[1729806663286,0.15296677,68365.0,68364.0,0.16673032]
[1729806663722,0.15296677,68365.0,68364.0,0.16215681]
[1729806671523,0.16208999,68365.0,68364.0,0.16215681]
[1729806673454,0.16208999,68365.0,68364.0,0.15715681]
[1729806673667,0.16208999,68365.0,68364.0,0.006653]
[1729806682774,0.34674413,68365.0,68364.0,0.006653]
[1729806683009,0.146282,68361.0,68360.0,0.00704864]
[1729806683251,0.146282,68361.0,68360.0,0.00304864]
[1729806683481,0.146282,68361.0,68360.0,0.00704864]
[1729806683482,0.16044949,68361.0,68360.0,0.00704864]
[1729806683710,0.24314949,68361.0,68360.0,0.00704864]
[1729806684587,0.53520363,68361.0,68360.0,0.00704864]
[1729806685920,0.93674373,68361.0,68360.0,0.00039564]
[1729806686134,0.524086,68359.0,68358.0,0.000826]
[1729806686354,0.78416049,68359.0,68358.0,0.000826]
[1729806686787,0.68536407,68359.0,68358.0,0.000826]
[1729806687001,0.79493668,68359.0,68358.0,0.000826]
[1729806687290,0.68536407,68359.0,68358.0,0.000826]
[1729806687497,0.77297103,68359.0,68358.0,0.000826]
[1729806687729,0.68536407,68359.0,68358.0,0.000826]
[1729806688403,0.93077817,68359.0,68358.0,0.000826]
[1729806688607,0.84321488,68359.0,68358.0,0.000826]
[1729806688823,0.69271107,68359.0,68358.0,0.000826]
[1729806689900,0.75835978,68359.0,68358.0,0.000826]
[1729806690087,0.69271107,68359.0,68358.0,0.000826]
[1729806690297,0.7364625,68359.0,68358.0,0.000826]
[1729806690738,0.69271107,68359.0,68358.0,0.000826]
[1729806690964,0.75835886,68359.0,68358.0,0.000826]
[1729806691388,0.69271107,68359.0,68358.0,0.000826]
[1729806691818,0.73644931,68359.0,68358.0,0.000826]
[1729806692037,0.69271107,68359.0,68358.0,0.000826]
[1729806693774,0.73644931,68359.0,68358.0,0.000826]
[1729806693996,0.69271107,68359.0,68358.0,0.000826]
[1729806694350,0.71571107,68359.0,68358.0,0.000826]
[1729806695397,0.71571107,68359.0,68358.0,1e-06]
[1729806695808,0.81766521,68359.0,68358.0,1e-06]
[1729806697282,0.81966521,68359.0,68358.0,1e-06]
[1729806697498,0.9625282,68359.0,68358.0,1e-06]
[1729806697924,0.81966521,68359.0,68358.0,1e-06]
[1729806698141,0.81766521,68359.0,68358.0,1e-06]
[1729806698325,0.81966521,68359.0,68358.0,1e-06]
[1729806698557,0.81766521,68359.0,68358.0,1e-06]
[1729806698769,0.75714728,68356.0,68355.0,1e-06]
[1729806699005,1.0581549,68356.0,68355.0,1e-06]
[1729806699207,1.06705416,68356.0,68355.0,1e-06]
[1729806699427,1.06905416,68356.0,68355.0,1e-06]
[1729806700331,1.06705416,68356.0,68355.0,1e-06]
[1729806701000,1.06905416,68356.0,68355.0,1e-06]
[1729806702140,1.07761098,68356.0,68355.0,1e-06]
[1729806703024,1.10052205,68356.0,68355.0,1e-06]
[1729806708436,0.95001824,68356.0,68355.0,1e-06]
[1729806708641,0.74410996,68356.0,68355.0,1e-06]
[1729806708862,0.95001824,68356.0,68355.0,1e-06]
[1729806709079,0.95387324,68356.0,68355.0,1e-06]
[1729806711465,0.281644,68354.0,68353.0,0.000827]
[1729806711677,0.43214781,68354.0,68353.0,0.000827]
[1729806711882,0.44322742,68354.0,68353.0,0.000827]
[1729806713714,0.4661657,68354.0,68353.0,0.000827]
[1729806714376,0.4681657,68354.0,68353.0,0.000827]
[1729806714814,0.4681657,68354.0,68351.0,0.000827]
[1729806714815,0.48555628,68352.0,68351.0,0.000827]
[1729806714999,0.71466009,68352.0,68351.0,0.000827]
[1729806715236,0.72773489,68352.0,68351.0,0.000827]
[1729806716596,0.012347,68348.0,68340.0,0.000827]
[1729806716815,0.54318028,68341.0,68340.0,0.000827]
[1729806717045,0.69168409,68341.0,68340.0,0.000827]
[1729806717270,0.70275029,68341.0,68340.0,0.000827]
[1729806718590,0.60079615,68341.0,68340.0,0.000827]
[1729806718831,0.8738217,68341.0,68340.0,0.000827]
[1729806719037,0.62379615,68341.0,68340.0,0.000827]
[1729806719891,0.63221726,68341.0,68340.0,0.000827]
[1729806725833,0.7341714,68341.0,68340.0,0.000827]
[1729806726959,0.53026312,68341.0,68340.0,0.000827]
[1729806727209,0.55361726,68341.0,68340.0,0.000827]
[1729806727661,0.6555714,68341.0,68340.0,0.000827]
[1729806727948,0.55361726,68341.0,68340.0,0.000827]
[1729806728864,0.34829814,68332.0,68331.0,0.192227]
[1729806729303,0.35933546,68332.0,68331.0,0.192227]
[1729806730396,0.25738132,68332.0,68331.0,0.192227]
[1729806730607,0.25738132,68332.0,68331.0,0.19488]
[1729806730832,0.25738132,68332.0,68331.0,0.27278]
[1729806731271,0.25738132,68332.0,68331.0,0.27695606]
[1729806731724,0.1537003,68332.0,68331.0,0.27695606]
[1729806731929,0.440592,68347.0,68346.0,0.002653]
[1729806732140,0.001652,68347.0,68346.0,0.28112906]
[1729806732355,0.001652,68347.0,68346.0,0.43244306]
[1729806732781,0.001652,68347.0,68346.0,0.28612906]
[1729806734072,0.147964,68347.0,68346.0,0.28612906]
[1729806734689,0.001652,68347.0,68346.0,0.28612906]
[1729806735316,0.147964,68347.0,68346.0,0.28612906]
[1729806737485,0.15015893,68347.0,68346.0,0.28612906]
[1729806737692,0.147964,68347.0,68346.0,0.28612906]
[1729806739390,0.15817598,68347.0,68346.0,0.28612906]
[1729806740081,0.16037121,68347.0,68346.0,0.00682906]
[1729806741178,0.15817598,68347.0,68346.0,0.00682906]
[1729806743111,0.15817598,68347.0,68346.0,0.00417606]
[1729806743650,0.15817598,68347.0,68346.0,0.00682906]
[1729806746034,0.15817598,68347.0,68346.0,0.27212906]
[1729806746905,0.15817598,68347.0,68346.0,0.00682906]
[1729806747569,0.16037081,68347.0,68346.0,0.00682906]
[1729806747803,0.15817598,68347.0,68346.0,0.00682906]
[1729806748451,0.16037084,68347.0,68346.0,0.00682906]
[1729806748894,0.15817598,68347.0,68346.0,0.27212906]
[1729806754977,0.16037111,68347.0,68346.0,0.00682906]
[1729806755623,0.15817598,68347.0,68346.0,0.00682906]
[1729806755836,0.01186398,68347.0,68346.0,0.16233287]
[1729806756056,0.01186398,68347.0,68346.0,0.43593287]
[1729806756283,0.01186398,68347.0,68346.0,0.58224687]
[1729806756711,0.001652,68347.0,68346.0,0.58224687]
[1729806757598,0.01321844,68347.0,68346.0,0.58224687]
[1729806760411,0.01321844,68347.0,68346.0,0.59224687]
[1729806760737,0.00384685,68347.0,68346.0,0.45050729]
[1729806761081,0.01323336,68347.0,68346.0,0.45050729]
[1729806761279,0.001652,68347.0,68346.0,0.44593287]
[1729806761501,0.01323407,68347.0,68346.0,0.44593287]
[1729806761719,0.001652,68347.0,68346.0,0.44593287]
[1729806761956,0.01323407,68347.0,68346.0,0.44593287]
[1729806762175,0.01323517,68347.0,68346.0,0.44593287]
[1729806762814,0.01323517,68347.0,68346.0,0.45050727]
[1729806764592,0.01323517,68347.0,68346.0,0.59682127]
[1729806764820,0.001652,68347.0,68346.0,0.59682127]
[1729806765523,0.001652,68347.0,68346.0,0.59882127]
[1729806765740,0.001652,68347.0,68346.0,0.59682127]
[1729806766224,0.001652,68347.0,68346.0,0.59882127]
[1729806767808,0.001652,68347.0,68346.0,0.62182127]
[1729806768226,0.001652,68347.0,68346.0,0.61724687]
[1729806769476,0.001652,68347.0,68346.0,0.71920101]
[1729806771400,0.001652,68347.0,68346.0,0.72377502]
[1729806772253,0.001652,68347.0,68346.0,0.71920101]
[1729806773051,0.001652,68347.0,68346.0,0.72775143]
[1729806775240,0.001652,68347.0,68346.0,0.77135855]
[1729806775885,0.001652,68347.0,68346.0,0.66940441]
[1729806776113,0.001652,68347.0,68346.0,0.76280813]
[1729806776335,0.001652,68347.0,68346.0,0.78461169]
[1729806777231,0.001652,68347.0,68346.0,0.71920101]
[1729806777448,0.001652,68347.0,68346.0,0.61724687]
[1729806777670,0.001652,68347.0,68346.0,0.80641525]
[1729806778098,0.001652,68347.0,68346.0,0.81504737]
[1729806778526,0.001652,68347.0,68346.0,0.72783313]
[1729806780507,0.001652,68347.0,68346.0,0.73240708]
[1729806781157,0.001652,68347.0,68346.0,0.73698094]
[1729806781846,0.001652,68347.0,68346.0,0.73240708]
[1729806782286,0.001652,68347.0,68346.0,0.81993603]
[1729806783400,0.001652,68347.0,68346.0,0.81993129]
[1729806785140,0.001652,68347.0,68346.0,0.84919129]
[1729806785400,0.001652,68347.0,68346.0,0.8199312]
[1729806788245,0.001652,68347.0,68346.0,0.81993092]
[1729806788495,0.001652,68347.0,68346.0,0.83624022]
[1729806788687,0.001652,68347.0,68346.0,0.81993092]
[1729806789003,0.001652,68347.0,68346.0,0.73240699]
[1729806789216,0.001652,68347.0,68346.0,0.84181191]
[1729806792032,0.001652,68347.0,68346.0,0.83723805]
[1729806792491,0.001652,68347.0,68346.0,0.72783313]
[1729806795423,0.001652,68347.0,68346.0,0.73240688]
[1729806796478,0.001652,68347.0,68346.0,0.72783313]
[1729806797966,0.001652,68347.0,68346.0,0.73240688]
[1729806798838,0.001652,68347.0,68346.0,0.72783313]
[1729806799468,0.001652,68347.0,68346.0,0.77347634]
[1729806804335,0.001652,68347.0,68346.0,0.75047634]
[1729806804552,0.001652,68347.0,68346.0,0.56469008]
[1729806804764,0.001652,68347.0,68346.0,0.51904687]
[1729806805832,0.001652,68347.0,68346.0,0.32064687]
[1729806806060,0.001652,68347.0,68346.0,0.31864687]
[1729806810593,0.001652,68347.0,68346.0,0.32064687]
[1729806811006,0.001652,68347.0,68346.0,0.42260101]
[1729806811852,0.001652,68347.0,68346.0,0.42060101]
[1729806813790,0.001652,68347.0,68346.0,0.42260101]
[1729806815527,0.001652,68347.0,68346.0,0.60550101]
[1729806818017,0.001652,68347.0,68346.0,0.60750101]
[1729806818452,0.001652,68347.0,68346.0,0.50354687]
[1729806822571,0.001652,68347.0,68346.0,0.50554687]
[1729806823005,0.001652,68347.0,68346.0,0.63713734]
[1729806828464,0.001652,68347.0,68346.0,0.50554687]
[1729806828898,0.001652,68347.0,68346.0,0.63713734]
[1729806829113,0.001652,68347.0,68346.0,0.50554687]
[1729806830028,0.001652,68347.0,68346.0,0.50354687]
[1729806830246,0.001652,68347.0,68346.0,0.50554687]
[1729806831333,0.001652,68347.0,68346.0,0.50354687]
[1729806832643,0.001652,68347.0,68346.0,0.50554687]
[1729806834895,0.001652,68347.0,68346.0,0.55126325]
[1729806835107,0.001652,68347.0,68346.0,0.50554687]
[1729806836217,0.001652,68347.0,68346.0,0.55126472]
[1729806836440,0.001652,68347.0,68346.0,0.50554687]
[1729806837113,0.001652,68347.0,68346.0,0.55126669]
[1729806839759,0.001652,68347.0,68346.0,0.50554687]
[1729806840179,0.001652,68347.0,68346.0,0.55127335]
[1729806840587,0.001652,68347.0,68346.0,0.68292508]
[1729806841287,0.001652,68347.0,68346.0,0.36637335]
[1729806841493,0.001652,68347.0,68346.0,0.49802508]
[1729806841909,0.001652,68347.0,68346.0,0.36637335]
[1729806843691,0.001652,68347.0,68346.0,0.49802508]
[1729806844110,0.001652,68347.0,68346.0,0.36637335]
[1729806844325,0.001652,68347.0,68346.0,0.49802508]
[1729806844986,0.001652,68347.0,68346.0,0.4980405]
[1729806847411,0.001652,68347.0,68346.0,0.36637335]
[1729806847681,0.001652,68347.0,68346.0,0.49804804]
[1729806848332,0.001652,68347.0,68346.0,0.36637335]
[1729806849399,0.001652,68347.0,68346.0,0.49805095]
[1729806849826,0.001652,68347.0,68346.0,0.49805424]
[1729806854697,0.001652,68347.0,68346.0,0.49805789]
[1729806854879,0.001652,68347.0,68346.0,0.36637335]
[1729806855593,0.001652,68347.0,68346.0,0.49805789]
[1729806856259,0.001652,68347.0,68346.0,0.36637335]
[1729806859316,0.001652,68347.0,68346.0,0.49805789]
[1729806859746,0.001652,68347.0,68346.0,0.36437335]
[1729806859962,0.001652,68347.0,68346.0,0.31864687]
[1729806860450,0.001652,68347.0,68346.0,0.32322083]
[1729806860661,0.001652,68347.0,68346.0,0.32522085]
[1729806861075,0.001652,68347.0,68346.0,0.32322085]
[1729806861290,0.001652,68347.0,68346.0,0.31864687]
[1729806861996,0.001652,68347.0,68346.0,0.32064687]
[1729806862210,0.001652,68347.0,68346.0,0.31864687]
[1729806863131,0.001652,68347.0,68346.0,0.32322094]
[1729806863593,0.001652,68347.0,68346.0,0.31822094]
[1729806863843,0.001652,68347.0,68346.0,0.31556794]
[1729806864056,0.001652,68347.0,68346.0,0.16690694]
[1729806864286,0.001652,68347.0,68346.0,0.01640313]
[1729806864287,0.23777353,68347.0,68346.0,0.01640313]
[1729806864496,0.23777353,68347.0,68346.0,0.0552997]
[1729806864705,0.23777353,68347.0,68346.0,0.01140313]
[1729806865142,0.23777353,68347.0,68346.0,0.00682906]
[1729806865586,0.23777353,68347.0,68346.0,0.01182906]
[1729806867176,0.23777353,68347.0,68346.0,0.00682906]
[1729806868889,0.42387353,68347.0,68346.0,0.01140368]
[1729806869320,0.42387353,68347.0,68345.0,0.00682906]
[1729806869321,0.410414,68346.0,68345.0,0.00682906]
[1729806869783,0.42258345,68346.0,68345.0,0.00682906]
[1729806871054,0.42258345,68346.0,68344.0,0.00682906]
[1729806871260,0.224316,68345.0,68344.0,0.00682906]
[1729806871913,0.23648545,68345.0,68344.0,0.00682906]
[1729806872158,0.52453959,68345.0,68344.0,0.00417606]
[1729806873013,0.146322,68342.0,68341.0,0.00682906]
[1729806873239,0.556763,68338.0,68336.0,0.00682906]
[1729806873472,0.24828714,68337.0,68336.0,0.00682906]
[1729806873695,0.26043847,68337.0,68336.0,0.00682906]
[1729806874144,0.26043847,68337.0,68336.0,0.00417606]
[1729806874360,0.224337,68335.0,68334.0,0.00682906]
[1729806874833,0.410437,68335.0,68334.0,0.00682906]
[1729806875038,0.42258981,68335.0,68334.0,0.00682906]
[1729806875713,0.42258981,68335.0,68334.0,0.002653]
[1729806875967,0.146342,68333.0,68332.0,0.000826]
[1729806876641,0.15849481,68333.0,68332.0,0.000826]
[1729806877535,0.23589481,68333.0,68332.0,0.000826]
[1729806881336,0.40559481,68333.0,68332.0,0.000826]
[1729806883596,0.50754895,68333.0,68332.0,0.000826]
[1729806889031,0.40559481,68333.0,68332.0,0.000826]
[1729806893626,0.50559481,68333.0,68332.0,0.000826]
[1729806895765,0.60754895,68333.0,68332.0,0.000826]
[1729806899196,0.50559481,68333.0,68332.0,0.000826]
[1729806903437,0.50724681,68333.0,68332.0,0.000826]
[1729806903894,0.62893512,68333.0,68332.0,0.000826]
[1729806904336,0.50724681,68333.0,68332.0,0.000826]
[1729806911633,0.60920095,68333.0,68332.0,0.000826]
[1729806912330,0.62014854,68333.0,68332.0,0.000826]
[1729806912987,0.60920095,68333.0,68332.0,0.000826]
[1729806917242,0.76205176,68333.0,68332.0,0.000826]
[1729806917451,0.80567279,68333.0,68332.0,0.000826]
[1729806917666,0.76205176,68333.0,68332.0,0.000826]
[1729806918342,0.81060143,68333.0,68332.0,0.000826]
[1729806918750,0.66009762,68333.0,68332.0,0.000826]
[1729806918817,0.72564029,68333.0,68332.0,0.000826]
[1729806919044,0.82759443,68333.0,68332.0,0.000826]
[1729806919268,0.82741829,68333.0,68332.0,0.000826]
[1729806920603,0.76187562,68333.0,68332.0,0.000826]
[1729806921702,0.84911768,68333.0,68332.0,0.000826]
[1729806921946,0.84933746,68333.0,68332.0,0.000826]
[1729806922164,0.84933751,68333.0,68332.0,0.000826]
[1729806922817,0.76187562,68333.0,68332.0,0.000826]
[1729806923479,0.8493385,68333.0,68332.0,0.000826]
[1729806923700,0.76187562,68333.0,68332.0,0.000826]
[1729806925835,0.87123529,68333.0,68332.0,0.000826]
[1729806927556,0.76187562,68333.0,68332.0,0.000826]
[1729806931176,0.87122793,68333.0,68332.0,0.000826]
[1729806931622,0.76187562,68333.0,68332.0,0.000826]
[1729806931832,0.59217562,68333.0,68332.0,0.000826]
[1729806932905,0.61517562,68333.0,68332.0,0.000826]
[1729806934378,0.73453254,68333.0,68332.0,0.000826]
[1729806934590,0.62517562,68333.0,68332.0,0.000826]
[1729806939800,0.72087562,68333.0,68332.0,0.000826]
[1729806941697,0.62092148,68333.0,68332.0,0.000826]
[1729806944920,0.61892148,68333.0,68332.0,0.000826]
[1729806948271,0.70676148,68333.0,68332.0,0.000826]
[1729806954829,0.8378548,68333.0,68332.0,0.000826]
[1729806955041,0.70676148,68333.0,68332.0,0.000826]
[1729806956165,0.82030036,68333.0,68332.0,0.000826]
[1729806956596,0.70676148,68333.0,68332.0,0.000826]
[1729806958102,0.8378548,68333.0,68332.0,0.000826]
[1729806958504,0.70676148,68333.0,68332.0,0.000826]
[1729806959263,0.52477562,68333.0,68332.0,0.098526]
[1729806960584,0.52697147,68333.0,68332.0,0.098526]
[1729806961434,0.52462447,68333.0,68332.0,0.098526]
[1729806961652,0.52697147,68333.0,68332.0,0.098526]
[1729806961910,0.51962447,68333.0,68332.0,0.098526]
[1729806962795,0.26216652,68333.0,68332.0,0.098526]
[1729806963100,0.26216652,68333.0,68332.0,0.184179]
[1729806963101,0.16216652,68333.0,68332.0,0.184179]
[1729806963286,0.15997067,68333.0,68332.0,0.184179]
[1729806963984,0.16216623,68333.0,68332.0,0.184179]
[1729806964877,0.26216623,68333.0,68332.0,0.184179]
[1729806965555,0.25888673,68333.0,68332.0,0.184179]
[1729806965786,0.11272087,68333.0,68332.0,0.33968281]
[1729806966018,0.22087426,68344.0,68339.0,0.00417606]
[1729806966251,0.146327,68340.0,68339.0,0.00417606]
[1729806966481,0.146327,68340.0,68339.0,0.00682906]
[1729806966733,0.146327,68340.0,68339.0,0.18752906]
[1729806968936,0.00219511,68341.0,68340.0,0.18752906]
[1729806969162,0.00219511,68341.0,68340.0,0.33803287]
[1729806969625,0.002,68344.0,68343.0,0.002653]
[1729806969849,0.148318,68344.0,68343.0,0.183353]
[1729806970069,0.002,68344.0,68343.0,0.183353]
[1729806970308,0.148318,68344.0,68343.0,0.18752906]
[1729806971937,0.14997,68344.0,68343.0,0.18752906]
[1729806972824,0.15216488,68344.0,68343.0,0.18752906]
[1729806973680,0.15216488,68344.0,68343.0,0.33803287]
[1729806973891,0.00584688,68344.0,68343.0,0.34303287]
[1729806974616,0.003652,68344.0,68343.0,0.34303287]
[1729806978321,0.00309686,68344.0,68343.0,0.34303287]
[1729806979936,0.00309686,68344.0,68343.0,0.33874103]
[1729806980645,0.001652,68347.0,68343.0,0.33874103]
[1729806980646,0.001652,68347.0,68346.0,0.15549006]
[1729806980851,0.001652,68347.0,68346.0,0.50094801]
[1729806982722,0.001652,68347.0,68346.0,0.50294801]
[1729806982933,0.001652,68347.0,68346.0,0.60254801]
[1729806984048,0.001652,68347.0,68346.0,0.60054801]
[1729806985615,0.001652,68347.0,68346.0,0.60254801]
[1729806986296,0.001652,68347.0,68346.0,0.60054801]
[1729806986516,0.001652,68347.0,68346.0,0.60254801]
[1729806987612,0.001652,68347.0,68346.0,0.60054801]
[1729806988252,0.001652,68347.0,68346.0,0.60254801]